lending/lending_fUSD_20260206
["ID","MTS","AMOUNT","RATE_DAILY","PERIOD"]
[404633441,1770359673011,-201.0,0.00026,20]
[404633442,1770359673034,-750.0,0.00027397,20]
[404633443,1770359679871,-257.26947708,0.00010944,2]
[404633444,1770359679894,-3878.38627014,0.00010944,2]
[404633445,1770359679916,-510.999349,0.00010959,2]
[404633446,1770359679941,-471.50611967,0.00011015,2]
[404633447,1770359679963,-574.86516052,0.00011015,2]
[404633448,1770359679986,-500.0,0.00011015,2]
[404633449,1770359680009,-209.89252377,0.00011015,2]
[404633450,1770359680039,-500.0,0.00011015,2]
[404633451,1770359680067,-500.0,0.00011015,2]
[404633452,1770359680088,-500.0,0.00011015,2]
[404633453,1770359680110,-500.0,0.00011015,2]
[404633454,1770359680132,-500.0,0.00011015,2]
[404633455,1770359680157,-500.0,0.00011015,2]
[404633456,1770359680435,-500.0,0.00011015,2]
[404633457,1770359680460,-500.0,0.00011015,2]
[404633458,1770359680485,-500.0,0.00011015,2]
[404633459,1770359680509,-500.0,0.00011015,2]
[404633460,1770359680534,-500.0,0.00011015,2]
[404633461,1770359680558,-500.0,0.00011015,2]
[404633462,1770359680585,-500.0,0.00011015,2]
[404633463,1770359680610,-500.0,0.00011015,2]
[404633464,1770359680634,-500.0,0.00011015,2]
[404633465,1770359680659,-500.0,0.00011015,2]
[404633466,1770359680682,-500.0,0.00011015,2]
[404633467,1770359680706,-500.0,0.00011015,2]
[404633468,1770359680729,-500.0,0.00011015,2]
[404633469,1770359680753,-500.0,0.00011015,2]
[404633470,1770359680776,-500.0,0.00011015,2]
[404633471,1770359680800,-500.0,0.00011015,2]
[404633472,1770359680827,-500.0,0.00011015,2]
[404633473,1770359680851,-500.0,0.00011015,2]
[404633474,1770359680875,-219.7040592,0.00011015,2]
[404633475,1770359680899,-500.0,0.00011015,2]
[404633476,1770359680923,-500.0,0.00011015,2]
[404633477,1770359680946,-500.0,0.00011015,2]
[404633478,1770359680970,-500.0,0.00011015,2]
[404633479,1770359680994,-500.0,0.00011015,2]
[404633480,1770359681017,-500.0,0.00011015,2]
[404633481,1770359681038,-300.0,0.00011015,2]
[404633482,1770359681064,-178077.37704062,0.00011016,2]
[404633483,1770359683042,1467.96226875,0.00044106,30]
[404633484,1770359687669,12594.32,0.00044106,30]
[404633489,1770359718523,151.0,0.00044106,120]
[404633491,1770359719214,156.587,0.00044106,120]
[404633492,1770359719937,162.380719,0.00044106,120]
[404633493,1770359720633,168.3888056,0.00044106,120]
[404633494,1770359721338,174.61919141,0.00044106,120]
[404633495,1770359725020,187.78006525,0.00044106,120]
[404633496,1770359725769,194.72792766,0.00044106,120]
[404633497,1770359729450,209.40437684,0.00044106,120]
[404633498,1770359730186,217.15233878,0.00044106,120]
[404633499,1770359730894,225.18697532,0.00044106,120]
[404633500,1770359731604,233.51889341,0.00044106,120]
[404633501,1770359732339,242.15909246,0.00044106,120]
[404633502,1770359733067,251.11897888,0.00044106,120]
[404633503,1770359733765,260.4103811,0.00044106,120]
[404633504,1770359734558,270.0455652,0.00044106,120]
[404633505,1770359735266,280.03725112,0.00044106,120]
[404633506,1770359736045,290.39862941,0.00044106,120]
[404633507,1770359736706,290.39862941,0.00044106,120]
[404633514,1770359831473,151.0,0.00044106,120]
[404633515,1770359832167,10000.0,0.00044106,120]
[404633516,1770359832240,156.587,0.00044106,120]
[404633517,1770359832902,162.380719,0.00044106,120]
[404633518,1770359832973,10000.0,0.00044106,120]
[404633519,1770359833573,10000.0,0.00044106,120]
[404633520,1770359833639,168.3888056,0.00044106,120]
[404633521,1770359834296,174.61919141,0.00044106,120]
[404633522,1770359834358,10000.0,0.00044106,120]
[404633523,1770359834931,181.08010149,0.00044106,120]
[404633524,1770359835779,187.78006525,0.00044106,120]
[404633525,1770359836345,194.72792766,0.00044106,120]
[404633526,1770359836999,201.93286099,0.00044106,120]
[404633527,1770359837760,209.40437684,0.00044106,120]
[404633528,1770359838708,217.15233878,0.00044106,120]
[404633529,1770359839463,225.18697532,0.00044106,120]
[404633530,1770359840165,233.51889341,0.00044106,120]
[404633531,1770359841026,242.15909246,0.00044106,120]
[404633532,1770359841769,251.11897888,0.00044106,120]
[404633533,1770359842923,260.4103811,0.00044106,120]
[404633534,1770359843656,270.0455652,0.00044106,120]
[404633535,1770359844384,280.03725112,0.00044106,120]
[404633536,1770359845085,290.39862941,0.00044106,120]
[404633537,1770359846096,290.39862941,0.00044106,120]
[404633538,1770359886086,6888.0,0.00044106,120]
[404633539,1770359899627,151.0,0.00044106,120]
[404633540,1770359900333,156.587,0.00044106,120]
[404633541,1770359901008,162.380719,0.00044106,120]
[404633542,1770359901628,168.3888056,0.00044106,120]
[404633543,1770359902354,174.61919141,0.00044106,120]
[404633544,1770359903052,181.08010149,0.00044106,120]
[404633545,1770359904027,187.78006525,0.00044106,120]
[404633546,1770359904726,194.72792766,0.00044106,120]
[404633547,1770359905429,201.93286099,0.00044106,120]
[404633548,1770359906054,209.40437684,0.00044106,120]
[404633549,1770359906763,217.15233878,0.00044106,120]
[404633550,1770359907478,225.18697532,0.00044106,120]
[404633551,1770359908187,233.51889341,0.00044106,120]
[404633552,1770359908901,242.15909246,0.00044106,120]
[404633553,1770359909626,251.11897888,0.00044106,120]
[404633554,1770359910447,260.4103811,0.00044106,120]
[404633555,1770359910984,270.0455652,0.00044106,120]
[404633556,1770359911687,280.03725112,0.00044106,120]
[404633557,1770359912440,290.39862941,0.00044106,120]
[404633558,1770359913147,290.39862941,0.00044106,120]
[404633560,1770359959172,151.0,0.00044106,120]
[404633561,1770359959880,156.587,0.00044106,120]
[404633562,1770359960565,162.380719,0.00044106,120]
[404633563,1770359961257,168.3888056,0.00044106,120]
[404633564,1770359961949,174.61919141,0.00044106,120]
[404633565,1770359962637,181.08010149,0.00044106,120]
[404633566,1770359963381,187.78006525,0.00044106,120]
[404633567,1770359964068,194.72792766,0.00044106,120]
[404633568,1770359964764,201.93286099,0.00044106,120]
[404633569,1770359965459,209.40437684,0.00044106,120]
[404633570,1770359966165,217.15233878,0.00044106,120]
[404633571,1770359966844,225.18697532,0.00044106,120]
[404633572,1770359967577,233.51889341,0.00044106,120]
[404633573,1770359968283,242.15909246,0.00044106,120]
[404633574,1770359969275,251.11897888,0.00044106,120]
[404633575,1770359969612,260.4103811,0.00044106,120]
[404633576,1770359970354,270.0455652,0.00044106,120]
[404633577,1770359971028,280.03725112,0.00044106,120]
[404633578,1770359971734,290.39862941,0.00044106,120]
[404633579,1770359972409,290.39862941,0.00044106,120]
[404633580,1770360002473,-1200.0,0.00010915,2]
[404633581,1770360010753,1715.59775872,0.00010816,2]
[404633582,1770360017534,-250.0,0.00010916,2]
[404633583,1770360023753,151.0,0.00044106,120]
[404633584,1770360024918,156.587,0.00044106,120]
[404633585,1770360025629,162.380719,0.00044106,120]
[404633586,1770360026435,168.3888056,0.00044104,120]
[404633587,1770360027045,174.61919141,0.00044104,120]
[404633588,1770360027779,181.08010149,0.00044104,120]
[404633589,1770360028836,187.78006525,0.00044104,120]
[404633590,1770360029777,194.72792766,0.00044104,120]
[404633591,1770360030688,201.93286099,0.00044104,120]
[404633592,1770360031262,209.40437684,0.00044104,120]
[404633593,1770360031965,217.15233878,0.00044104,120]
[404633594,1770360032008,500.0,0.00010915,2]
[404633595,1770360032044,330.05428377,0.00010915,2]
[404633596,1770360032073,402.40561236,0.00010915,2]
[404633597,1770360032127,500.0,0.00010915,2]
[404633598,1770360032311,246.92476664,0.00010915,2]
[404633599,1770360032392,500.0,0.00010915,2]
[404633600,1770360032528,500.0,0.00010915,2]
[404633601,1770360032674,225.18697532,0.00044104,120]
[404633602,1770360033434,233.51889341,0.00044104,120]
[404633604,1770360034148,242.15909246,0.00044104,120]
[404633605,1770360034874,251.11897888,0.00044104,120]
[404633607,1770360035614,260.4103811,0.00044104,120]
[404633608,1770360036313,270.0455652,0.00044104,120]
[404633609,1770360036526,500.0,0.00010915,2]
[404633610,1770360036573,271.97040591,0.00010915,2]
[404633611,1770360036645,500.0,0.00010915,2]
[404633612,1770360036691,500.0,0.00010915,2]
[404633613,1770360036735,500.0,0.00010915,2]
[404633614,1770360036779,500.0,0.00010915,2]
[404633615,1770360036832,500.0,0.00010915,2]
[404633616,1770360036880,500.0,0.00010915,2]
[404633618,1770360036932,500.0,0.00010915,2]
[404633619,1770360037029,280.03725112,0.00044104,120]
[404633620,1770360037773,290.39862941,0.00044104,120]
[404633622,1770360038425,290.39862941,0.00044104,120]
[404633623,1770360039202,2853.69029434,0.00010816,2]
[404633625,1770360042015,687.08,0.00044104,60]
[404633626,1770360061374,300.0,0.00010915,2]
[404633627,1770360065101,-734.89744585,0.00010916,2]
[404633628,1770360065125,-5000.01,0.00010916,2]
[404633629,1770360067798,171.51298472,0.00010816,2]
[404633630,1770360068306,151.0,0.00044104,120]
[404633631,1770360069024,156.587,0.00044104,120]
[404633632,1770360069721,162.380719,0.00044104,120]
[404633633,1770360070441,168.3888056,0.00044104,120]
[404633634,1770360071155,174.61919141,0.00044104,120]
[404633635,1770360071346,-5000.01,0.00010916,2]
[404633636,1770360071834,-5000.01,0.00010916,2]
[404633637,1770360071908,181.08010149,0.00044104,120]
[404633638,1770360072633,187.78006525,0.00044104,120]
[404633639,1770360073247,194.72792766,0.00044104,120]
[404633640,1770360073986,201.93286099,0.00044104,120]
[404633641,1770360074549,151.0,0.00010913,2]
[404633642,1770360075272,209.40437684,0.00044104,120]
[404633643,1770360075992,217.15233878,0.00044104,120]
[404633644,1770360076681,225.18697532,0.00044104,120]
[404633645,1770360077432,233.51889341,0.00044104,120]
[404633646,1770360078122,242.15909246,0.00044104,120]
[404633647,1770360078821,251.11897888,0.00044104,120]
[404633648,1770360079438,260.4103811,0.00044104,120]
[404633649,1770360080154,270.0455652,0.00044104,120]
[404633650,1770360080836,280.03725112,0.00044104,120]
[404633651,1770360081550,290.39862941,0.00044104,120]
[404633652,1770360082330,290.39862941,0.00044104,120]
[404633653,1770360092415,3730.989,0.00010698,2]
[404633654,1770360092447,327.461,0.00010698,2]
[404633656,1770360116596,500.0,0.00010815,2]
[404633657,1770360121593,300.0,0.00010915,2]
[404633658,1770360130900,151.0,0.00044104,120]
[404633659,1770360131582,156.587,0.00044104,120]
[404633660,1770360132288,162.380719,0.00044104,120]
[404633661,1770360132961,168.3888056,0.00044104,120]
[404633662,1770360133657,174.61919141,0.00044104,120]
[404633663,1770360134313,181.08010149,0.00044104,120]
[404633664,1770360135001,187.78006525,0.00044104,120]
[404633665,1770360135676,194.72792766,0.00044104,120]
[404633666,1770360136420,201.93286099,0.00044104,120]
[404633667,1770360137107,209.40437684,0.00044104,120]
[404633668,1770360138980,217.15233878,0.00044104,120]
[404633669,1770360139656,225.18697532,0.00044104,120]
[404633670,1770360140359,233.51889341,0.00044104,120]
[404633671,1770360141054,242.15909246,0.00044104,120]
[404633672,1770360145703,1143.73183914,0.00010816,2]
[404633673,1770360146362,251.11897888,0.00044104,120]
[404633674,1770360147029,260.4103811,0.00044104,120]
[404633675,1770360147699,270.0455652,0.00044104,120]
[404633676,1770360148488,280.03725112,0.00044104,120]
[404633677,1770360149193,290.39862941,0.00044104,120]
[404633678,1770360149884,290.39862941,0.00044104,120]
[404633679,1770360156518,274.06039294,0.00010915,2]
[404633680,1770360159209,1446.45010051,0.000109,2]
[404633681,1770360159321,722.434038,0.00044104,120]
[404633682,1770360159370,1654.80468269,0.00010816,2]
[404633683,1770360159398,545.54378863,0.00010816,2]
[404633684,1770360189496,180.87617865,0.00010816,2]
[404633685,1770360193951,151.0,0.00010913,2]
[404633686,1770360198159,323.8218259,0.00010816,2]
[404633687,1770360211539,150.0,0.00010888,2]
[404633688,1770360211793,150.0,0.00010888,2]
[404633689,1770360215583,180.38042548,0.00010816,2]
[404633690,1770360241323,300.0,0.00010915,2]
[404633691,1770360262806,151.0,0.00044104,120]
[404633692,1770360263508,156.587,0.00044104,120]
[404633693,1770360264231,162.380719,0.00044104,120]
[404633694,1770360265202,168.3888056,0.00044104,120]
[404633695,1770360265599,174.61919141,0.00044104,120]
[404633696,1770360266298,181.08010149,0.00044104,120]
[404633697,1770360267040,187.78006525,0.00044104,120]
[404633698,1770360267806,194.72792766,0.00044104,120]
[404633699,1770360268479,201.93286099,0.00044104,120]
[404633700,1770360269258,209.40437684,0.00044104,120]
[404633701,1770360270009,217.15233878,0.00044104,120]
[404633702,1770360270698,225.18697532,0.00044104,120]
[404633703,1770360271390,233.51889341,0.00044104,120]
[404633704,1770360272106,242.15909246,0.00044104,120]
[404633705,1770360272811,251.11897888,0.00044104,120]
[404633706,1770360273436,762.48789276,0.00010816,2]
[404633707,1770360273526,260.4103811,0.00044104,120]
[404633708,1770360273908,500.0,0.00010816,2]
[404633709,1770360274137,270.0455652,0.00044104,120]
[404633710,1770360274821,280.03725112,0.00044104,120]
[404633711,1770360275534,290.39862941,0.00044104,120]
[404633712,1770360276257,290.39862941,0.00044104,120]
[404633713,1770360279556,1466.89898088,0.00010816,2]
[404633714,1770360295336,5289.0009077,0.00010816,2]
[404633715,1770360295362,10000.01,0.00010816,2]
[404633716,1770360295385,10000.01,0.00010816,2]
[404633717,1770360295408,10000.01,0.00010816,2]
[404633718,1770360295435,10000.01,0.00010816,2]
[404633719,1770360295459,10000.01,0.00010816,2]
[404633720,1770360295483,10000.01,0.00010816,2]
[404633721,1770360295506,5000.01,0.00010816,2]
[404633722,1770360295530,5000.01,0.00010816,2]
[404633723,1770360295553,5000.01,0.00010816,2]
[404633724,1770360295575,5000.01,0.00010816,2]
[404633725,1770360295598,5000.01,0.00010816,2]
[404633726,1770360295622,5000.01,0.00010816,2]
[404633727,1770360295647,5000.01,0.00010816,2]
[404633728,1770360295671,5000.01,0.00010816,2]
[404633729,1770360295699,5000.01,0.00010816,2]
[404633730,1770360295724,5000.01,0.00010816,2]
[404633731,1770360301457,300.0,0.00010815,2]
[404633732,1770360301516,1200.0,0.00010815,2]
[404633733,1770360302475,150.0,0.00010815,2]
[404633734,1770360303731,300.0,0.00010815,2]
[404633735,1770360314643,151.0,0.00010813,2]
[404633736,1770360328594,215.88121726,0.00010766,2]
[404633740,1770360361298,300.0,0.00010815,2]
[404633741,1770360366470,151.0,0.00044104,120]
[404633742,1770360367110,156.587,0.00044104,120]
[404633743,1770360367824,162.380719,0.00044104,120]
[404633744,1770360368838,168.3888056,0.00044104,120]
[404633745,1770360369540,174.61919141,0.00044104,120]
[404633746,1770360370225,181.08010149,0.00044104,120]
[404633747,1770360370930,187.78006525,0.00044104,120]
[404633748,1770360371644,194.72792766,0.00044104,120]
[404633749,1770360372343,201.93286099,0.00044104,120]
[404633750,1770360373056,209.40437684,0.00044104,120]
[404633751,1770360373764,217.15233878,0.00044104,120]
[404633752,1770360374460,225.18697532,0.00044104,120]
[404633753,1770360375161,233.51889341,0.00044104,120]
[404633754,1770360375896,242.15909246,0.00044104,120]
[404633755,1770360376606,251.11897888,0.00044104,120]
[404633756,1770360377349,260.4103811,0.00044104,120]
[404633757,1770360378051,270.0455652,0.00044104,120]
[404633758,1770360379143,280.03725112,0.00044104,120]
[404633759,1770360379873,290.39862941,0.00044104,120]
[404633760,1770360380581,290.39862941,0.00044104,120]
[404633761,1770360392683,276.90159416,0.00010815,2]
[404633762,1770360392714,500.0,0.00010815,2]
[404633763,1770360392756,338.35632561,0.00010815,2]
[404633764,1770360393017,500.0,0.00010815,2]
[404633765,1770360393084,264.6896117,0.00010815,2]
[404633766,1770360393153,500.0,0.00010815,2]
[404633767,1770360396817,3.18125127,0.00010815,2]
[404633768,1770360396844,471.48212717,0.00010815,2]
[404633769,1770360399781,977.93265392,0.00010716,2]
[404633770,1770360403730,508.32526184,0.00010716,2]
[404633771,1770360421452,300.0,0.00010815,2]
[404633772,1770360435939,151.0,0.00010813,2]
[404633773,1770360445782,500.0,0.00010815,2]
[404633774,1770360445820,500.0,0.00010815,2]
[404633775,1770360446182,151.0,0.00010815,2]
[404633776,1770360446216,500.0,0.00010815,2]
[404633777,1770360446611,500.0,0.00010815,2]
[404633778,1770360447051,440.26995707,0.00010815,2]
[404633779,1770360447075,59.73004293,0.00010815,2]
[404633780,1770360451780,218.14513674,0.00010788,2]
[404633781,1770360458933,158.08422889,0.00010716,2]
[404633782,1770360467792,-190000.0,0.00010816,2]
[404633783,1770360482006,150.0,0.00010815,2]
[404633784,1770360482219,300.0,0.00010815,2]
[404633785,1770360506664,151.0,0.00044104,120]
[404633786,1770360507354,156.587,0.00044104,120]
[404633787,1770360508062,162.380719,0.00044104,120]
[404633788,1770360508793,168.3888056,0.00044104,120]
[404633789,1770360509430,174.61919141,0.00044104,120]
[404633790,1770360510144,500.0,0.00010815,2]
[404633791,1770360510219,181.08010149,0.00044104,120]
[404633792,1770360510925,187.78006525,0.00044104,120]
[404633793,1770360511611,194.72792766,0.00044104,120]
[404633794,1770360512324,201.93286099,0.00044104,120]
[404633795,1770360513416,209.40437684,0.00044104,120]
[404633796,1770360513724,217.15233878,0.00044104,120]
[404633797,1770360514416,225.18697532,0.00044104,120]
[404633798,1770360515182,233.51889341,0.00044104,120]
[404633799,1770360515880,242.15909246,0.00044104,120]
[404633800,1770360516583,251.11897888,0.00044104,120]
[404633801,1770360517450,260.4103811,0.00044104,120]
[404633802,1770360518247,270.0455652,0.00044104,120]
[404633803,1770360518990,280.03725112,0.00044104,120]
[404633804,1770360519700,290.39862941,0.00044104,120]
[404633805,1770360520030,651.95510262,0.00010716,2]
[404633806,1770360520119,193.83111591,0.00010815,2]
[404633807,1770360520418,290.39862941,0.00044104,120]
[404633808,1770360523699,500.0,0.00010815,2]
[404633809,1770360534326,500.0,0.00010815,2]
[404633810,1770360534387,235.28272819,0.00010815,2]
[404633811,1770360534425,500.0,0.00010815,2]
[404633812,1770360537055,338.8835079,0.00010716,2]
[404633813,1770360541380,300.0,0.00010815,2]
[404633814,1770360541515,394.09813682,0.00010815,2]
[404633815,1770360541541,105.90186318,0.00010815,2]
[404633816,1770360556149,-5187.868826,0.00010816,2]
[404633817,1770360556770,151.0,0.00010813,2]
[404633818,1770360556951,152.03924394,0.00010815,2]
[404633819,1770360561520,500.0,0.00010815,2]
[404633820,1770360577639,500.0,0.00010815,2]
[404633821,1770360588826,554.39058908,0.00010815,2]
[404633822,1770360589220,158.08422888,0.00010716,2]
[404633823,1770360593673,500.0,0.00010815,2]
[404633824,1770360601224,1200.0,0.00010815,2]
[404633825,1770360601722,300.0,0.00010815,2]
[404633826,1770360610191,500.0,0.00010815,2]
[404633827,1770360612236,378.59407492,0.00010716,2]
[404633828,1770360612260,5000.01,0.00010716,2]
[404633829,1770360612285,5000.01,0.00010716,2]
[404633830,1770360612313,5000.01,0.00010716,2]
[404633831,1770360612337,5000.01,0.00010716,2]
[404633832,1770360612362,5000.01,0.00010716,2]
[404633833,1770360612390,5000.01,0.00010716,2]
[404633834,1770360612418,10000.01,0.00010716,2]
[404633835,1770360612446,10000.01,0.00010716,2]
[404633836,1770360612472,10000.01,0.00010716,2]
[404633837,1770360612509,10000.01,0.00010716,2]
[404633838,1770360612539,10000.01,0.00010716,2]
[404633839,1770360612566,10000.01,0.00010716,2]
[404633840,1770360612593,10000.01,0.00010716,2]
[404633841,1770360612619,5000.01,0.00010716,2]
[404633842,1770360612648,10000.01,0.00010716,2]
[404633843,1770360612674,5000.01,0.00010716,2]
[404633844,1770360612701,10000.01,0.00010716,2]
[404633845,1770360612726,5000.01,0.00010716,2]
[404633846,1770360624867,151.0,0.00044104,120]
[404633847,1770360625592,156.587,0.00044104,120]
[404633848,1770360626325,162.380719,0.00044104,120]
[404633849,1770360627046,168.3888056,0.00044105,120]
[404633850,1770360627777,174.61919141,0.00044105,120]
[404633851,1770360628523,181.08010149,0.00044105,120]
[404633852,1770360629237,187.78006525,0.00044105,120]
[404633853,1770360629983,194.72792766,0.00044105,120]
[404633854,1770360630711,201.93286099,0.00044105,120]
[404633855,1770360631428,209.40437684,0.00044105,120]
[404633856,1770360631953,500.0,0.00010715,2]
[404633859,1770360632002,364.69790974,0.00010715,2]
[404633860,1770360632214,217.15233878,0.00044105,120]
[404633861,1770360632336,-510.999349,0.00010716,2]
[404633862,1770360632358,-119423.89845283,0.00010716,2]
[404633863,1770360632369,-48808.80076986,0.00010716,2]
[404633864,1770360632855,225.18697532,0.00044105,120]
[404633865,1770360633370,500.0,0.00010715,2]
[404633866,1770360633415,337.34251542,0.00010715,2]
[404633867,1770360633566,233.51889341,0.00044105,120]
[404633868,1770360633804,500.0,0.00010715,2]
[404633869,1770360633906,554.39058908,0.00010715,2]
[404633871,1770360634271,242.15909246,0.00044105,120]
[404633872,1770360635017,251.11897888,0.00044105,120]
[404633873,1770360635716,260.4103811,0.00044105,120]
[404633874,1770360636421,270.0455652,0.00044105,120]
[404633875,1770360637057,280.03725112,0.00044105,120]
[404633876,1770360637782,290.39862941,0.00044105,120]
[404633881,1770360638170,-451.15504761,0.00010716,2]
[404633883,1770360638239,-918.3910765,0.00010716,2]
[404633884,1770360638250,-1554.53461667,0.00010716,2]
[404634028,1770360641993,-653263.87874655,0.00010716,2]
[404634029,1770360642007,-5018.84606289,0.00010716,2]
[404634030,1770360642018,-2381.6089235,0.00010716,2]
[404634031,1770360642034,-3847.83174617,0.00010716,2]
[404634032,1770360642119,290.39862941,0.00044105,120]
[404634033,1770360642321,434.63673508,0.00010715,2]
[404634034,1770360642342,-347.73608874,0.00010716,2]
[404634035,1770360642374,-1280.8790409,0.00010716,2]
[404634036,1770360642450,-24880.31536198,0.00010716,2]
[404634037,1770360642466,-7616.11512361,0.00010716,2]
[404634038,1770360642480,-584.83427327,0.00010716,2]
[404634039,1770360642491,-1045.328,0.00010716,2]
[404634040,1770360642502,-322.41,0.00010716,2]
[404634041,1770360642517,-11140.9429633,0.00010716,2]
[404634077,1770360646753,-4918.23418071,0.00010716,2]
[404634081,1770360646764,-865.80451759,0.00010716,2]
[404634085,1770360646776,-680.76275655,0.00010716,2]
[404634135,1770360647854,-5490.2261863,0.00010716,2]
[404634141,1770360662222,300.0,0.00010715,2]
[404634142,1770360662818,1413.3123,0.00010616,2]
[404634143,1770360676286,151.0,0.00010713,2]
[404634144,1770360690860,42701.5,0.00044105,120]
[404634145,1770360692239,3355.057,0.00010502,2]
[404634146,1770360692331,261.969,0.00010502,2]
[404634147,1770360709566,158.08422888,0.00010666,2]
[404634148,1770360712085,507.0,0.00044105,120]
[404634149,1770360721539,300.0,0.00010715,2]
[404634150,1770360739581,500.0,0.00010715,2]
[404634151,1770360739635,369.5197218,0.00010715,2]
[404634152,1770360739662,184.87086728,0.00010715,2]
[404634153,1770360740073,500.0,0.00044105,120]
[404634154,1770360749114,500.0,0.00044105,120]
[404634155,1770360752854,151.0,0.00044105,120]
[404634156,1770360753477,156.587,0.00044105,120]
[404634157,1770360754214,162.380719,0.00044105,120]
[404634158,1770360754919,168.3888056,0.00044105,120]
[404634159,1770360755631,174.61919141,0.00044105,120]
[404634160,1770360756372,181.08010149,0.00044105,120]
[404634161,1770360756540,200.0,0.00044105,30]
[404634162,1770360757073,187.78006525,0.00044105,120]
[404634163,1770360757786,194.72792766,0.00044105,120]
[404634164,1770360758490,201.93286099,0.00044105,120]
[404634165,1770360759212,209.40437684,0.00044105,120]
[404634166,1770360759891,217.15233878,0.00044105,120]
[404634167,1770360760385,289.75782338,0.00010616,2]
[404634168,1770360760606,225.18697532,0.00044105,120]
[404634169,1770360761329,233.51889341,0.00044105,120]
[404634170,1770360762026,242.15909246,0.00044105,120]
[404634171,1770360762729,251.11897888,0.00044105,120]
[404634172,1770360763432,260.4103811,0.00044105,120]
[404634173,1770360764155,270.0455652,0.00044105,120]
[404634174,1770360764923,280.03725112,0.00044105,120]
[404634175,1770360765617,290.39862941,0.00044105,120]
[404634176,1770360766330,290.39862941,0.00044105,120]
[404634177,1770360769569,3006.338547,0.00010616,2]
[404634178,1770360776093,1047.3939548,0.00044105,120]
[404634179,1770360780210,2181.524889,0.00010662,2]
[404634180,1770360795796,151.0,0.00010713,2]
[404634181,1770360802594,225.9223386,0.00010616,2]
[404634182,1770360808120,200000.0,0.00044105,30]
[404634183,1770360809773,200000.0,0.00044105,30]
[404634184,1770360811212,200000.0,0.00044105,30]
[404634185,1770360813143,200000.0,0.00044105,30]
[404634186,1770360815372,200000.0,0.00044105,30]
[404634187,1770360841258,300.0,0.00010715,2]
[404634188,1770360846352,300.0,0.00010715,2]
[404634189,1770360848451,151.0,0.00044105,120]
[404634190,1770360849579,156.587,0.00044105,120]
[404634191,1770360850314,162.380719,0.00044105,120]
[404634192,1770360855808,500.0,0.00010715,2]
[404634193,1770360860382,318.29859132,0.00010715,2]
[404634194,1770360864889,168.3888056,0.00044105,120]
[404634195,1770360865675,174.61919141,0.00044105,120]
[404634196,1770360865711,500.0,0.00010715,2]
[404634197,1770360865750,500.0,0.00010715,2]
[404634198,1770360865786,500.0,0.00010715,2]
[404634199,1770360865832,500.0,0.00010715,2]
[404634200,1770360865888,500.0,0.00010715,2]
[404634201,1770360865983,42.29694342,0.00010715,2]
[404634202,1770360866011,413.48979982,0.00010715,2]
[404634203,1770360866395,181.08010149,0.00044105,120]
[404634204,1770360867117,187.78006525,0.00044105,120]
[404634205,1770360867816,194.72792766,0.00044105,120]
[404634206,1770360868603,201.93286099,0.00044105,120]
[404634207,1770360869303,209.40437684,0.00044105,120]